[Event "Titled Tuesday Blitz November 22 Late 2022"]
[White "Samarth, J Rao"]
[Black "Castillo Pena, Patricia Evarista"]
[WhiteFideId "46652370"]
[BlackFideId "6412106"]
[WhiteElo "1564"]
[BlackElo "1919"]
[Result "1-0"]
[Round "05"]
[TimeControl "180+1"]
[Date "2022.11.23"]
[WhiteClock "0:00:07"]
[BlackClock "0:00:08"]

1. e4 {[%clk 0:02:51]}  c5 {[%clk 0:02:59]} 2. Nf3 {[%clk 0:02:47]}  d6 {[%clk 0:02:58]} 3. d4 {[%clk 0:02:41]}  cxd4 {[%clk 0:02:59]} 4. Nxd4 {[%clk 0:02:42]}  Nf6 {[%clk 0:02:59]} 5. Nc3 {[%clk 0:02:42]}  a6 {[%clk 0:02:59]} 6. h4 {[%clk 0:02:42]}  e5 {[%clk 0:02:58]} 7. Nb3 {[%clk 0:02:40]}  Be6 {[%clk 0:02:57]} 8. f4 {[%clk 0:02:34]}  exf4 {[%clk 0:02:45]} 9. Bxf4 {[%clk 0:02:35]}  d5 {[%clk 0:02:40]} 10. e5 {[%clk 0:02:21]}  Ng4 {[%clk 0:02:24]} 11. Nd4 {[%clk 0:02:12]}  h5 {[%clk 0:02:19]} 12. Qd2 {[%clk 0:02:01]}  Qb6 {[%clk 0:02:01]} 13. O-O-O {[%clk 0:01:49]}  Nc6 {[%clk 0:02:00]} 14. Nxc6 {[%clk 0:01:29]}  bxc6 {[%clk 0:01:51]} 15. Na4 {[%clk 0:01:28]}  Qb4 {[%clk 0:01:46]} 16. Qxb4 {[%clk 0:01:28]}  Bxb4 {[%clk 0:01:47]} 17. a3 {[%clk 0:01:25]}  Ba5 {[%clk 0:01:41]} 18. b4 {[%clk 0:01:24]}  Bc7 {[%clk 0:01:40]} 19. Re1 {[%clk 0:01:20]}  O-O {[%clk 0:01:31]} 20. g3 {[%clk 0:01:01]}  Nf2 {[%clk 0:01:27]} 21. Rh2 {[%clk 0:01:00]}  Ne4 {[%clk 0:01:26]} 22. Bd3 {[%clk 0:01:00]}  Bf5 {[%clk 0:01:19]} 23. Bxe4 {[%clk 0:00:57]}  Bxe4 {[%clk 0:01:18]} 24. Nc5 {[%clk 0:00:58]}  Bf5 {[%clk 0:01:17]} 25. Rf2 {[%clk 0:00:55]}  g6 {[%clk 0:01:15]} 26. e6 {[%clk 0:00:51]}  Bxf4+ {[%clk 0:01:15]} 27. Rxf4 {[%clk 0:00:51]}  fxe6 {[%clk 0:01:14]} 28. Rf2 {[%clk 0:00:36]}  Rfe8 {[%clk 0:01:11]} 29. Rfe2 {[%clk 0:00:36]}  Kf7 {[%clk 0:01:09]} 30. c3 {[%clk 0:00:34]}  a5 {[%clk 0:01:09]} 31. Nb7 {[%clk 0:00:30]}  axb4 {[%clk 0:01:00]} 32. Nd6+ {[%clk 0:00:29]}  Kf8 {[%clk 0:00:59]} 33. Nxe8 {[%clk 0:00:23]}  Kxe8 {[%clk 0:00:59]} 34. axb4 {[%clk 0:00:18]}  Ra1+ {[%clk 0:00:58]} 35. Kb2 {[%clk 0:00:18]}  Ra8 {[%clk 0:00:54]} 36. Ra1 {[%clk 0:00:19]}  Rb8 {[%clk 0:00:51]} 37. Ra5 {[%clk 0:00:16]}  Rb6 {[%clk 0:00:47]} 38. Kc1 {[%clk 0:00:15]}  Kd7 {[%clk 0:00:46]} 39. Kd2 {[%clk 0:00:16]}  Kd6 {[%clk 0:00:46]} 40. Ke3 {[%clk 0:00:16]}  e5 {[%clk 0:00:42]} 41. Rea2 {[%clk 0:00:15]}  Rb7 {[%clk 0:00:38]} 42. Ra7 {[%clk 0:00:14]}  Rxa7 {[%clk 0:00:33]} 43. Rxa7 {[%clk 0:00:12]}  e4 {[%clk 0:00:23]} 44. Kd4 {[%clk 0:00:12]}  Bg4 {[%clk 0:00:20]} 45. Ra6 {[%clk 0:00:12]}  Kc7 {[%clk 0:00:18]} 46. Ra7+ {[%clk 0:00:12]}  Kb6 {[%clk 0:00:18]} 47. Rg7 {[%clk 0:00:13]}  Bf5 {[%clk 0:00:18]} 48. Rg8 {[%clk 0:00:12]}  Kb5 {[%clk 0:00:17]} 49. Rb8+ {[%clk 0:00:11]}  Ka6 {[%clk 0:00:17]} 50. Kc5 {[%clk 0:00:11]}  e3 {[%clk 0:00:16]} 51. Re8 {[%clk 0:00:10]}  Be4 {[%clk 0:00:16]} 52. Ra8+ {[%clk 0:00:07]}  Kb7 {[%clk 0:00:16]} 53. Ra1 {[%clk 0:00:07]}  e2 {[%clk 0:00:16]} 54. Kd4 {[%clk 0:00:06]}  Bf3 {[%clk 0:00:16]} 55. Ke3 {[%clk 0:00:05]}  Bg4 {[%clk 0:00:16]} 56. Kd2 {[%clk 0:00:05]}  Kb6 {[%clk 0:00:14]} 57. Ra5 {[%clk 0:00:05]}  Kc7 {[%clk 0:00:13]} 58. Ra7+ {[%clk 0:00:05]}  Kd6 {[%clk 0:00:13]} 59. Rg7 {[%clk 0:00:05]}  Ke5 {[%clk 0:00:10]} 60. Rxg6 {[%clk 0:00:05]}  Ke4 {[%clk 0:00:10]} 61. Rf6 {[%clk 0:00:05]}  d4 {[%clk 0:00:10]} 62. Rf4+ {[%clk 0:00:05]}  Kd5 {[%clk 0:00:10]} 63. Rxd4+ {[%clk 0:00:06]}  Ke5 {[%clk 0:00:09]} 64. Rxg4 {[%clk 0:00:06]}  hxg4 {[%clk 0:00:08]} 65. Kxe2 {[%clk 0:00:07]} 1-0


[Site "https://www.chess.com"]

[Event "Titled Tuesday Blitz November 22 Late 2022"]
[White "Shimanov, Aleksandr"]
[Black "Fedoseev, Vladimir"]
[WhiteFideId "4198603"]
[BlackFideId "24130737"]
[WhiteElo "2605"]
[BlackElo "2726"]
[Result "1-0"]
[Round "05"]
[TimeControl "180+1"]
[Date "2022.11.22"]
[WhiteClock "0:00:05"]
[BlackClock "0:00:06"]

1. e4 {[%clk 0:03:00]}  c5 {[%clk 0:02:55]} 2. Nf3 {[%clk 0:03:00]}  d6 {[%clk 0:02:55]} 3. d4 {[%clk 0:03:00]}  cxd4 {[%clk 0:02:56]} 4. Qxd4 {[%clk 0:03:01]}  Nc6 {[%clk 0:02:44]} 5. Bb5 {[%clk 0:03:00]}  a6 {[%clk 0:02:45]} 6. Bxc6+ {[%clk 0:03:00]}  bxc6 {[%clk 0:02:46]} 7. O-O {[%clk 0:02:54]}  e5 {[%clk 0:02:40]} 8. Qa4 {[%clk 0:02:53]}  Bd7 {[%clk 0:02:26]} 9. c4 {[%clk 0:02:53]}  f6 {[%clk 0:02:13]} 10. Rd1 {[%clk 0:02:49]}  d5 {[%clk 0:02:10]} 11. Nc3 {[%clk 0:01:54]}  d4 {[%clk 0:02:05]} 12. Ne2 {[%clk 0:01:54]}  c5 {[%clk 0:01:56]} 13. Qc2 {[%clk 0:01:52]}  Ne7 {[%clk 0:01:56]} 14. Ne1 {[%clk 0:01:52]}  Nc6 {[%clk 0:01:50]} 15. Nd3 {[%clk 0:01:52]}  Nb4 {[%clk 0:01:47]} 16. Nxb4 {[%clk 0:01:50]}  cxb4 {[%clk 0:01:48]} 17. Ng3 {[%clk 0:01:49]}  Bc5 {[%clk 0:01:46]} 18. b3 {[%clk 0:01:46]}  O-O {[%clk 0:01:45]} 19. Bd2 {[%clk 0:01:45]}  a5 {[%clk 0:01:45]} 20. Rf1 {[%clk 0:01:44]}  Ra6 {[%clk 0:01:25]} 21. Qd3 {[%clk 0:01:44]}  Qa8 {[%clk 0:01:17]} 22. f4 {[%clk 0:01:38]}  exf4 {[%clk 0:01:17]} 23. Rxf4 {[%clk 0:01:39]}  a4 {[%clk 0:01:16]} 24. Raf1 {[%clk 0:01:39]}  axb3 {[%clk 0:01:15]} 25. axb3 {[%clk 0:01:39]}  Re8 {[%clk 0:00:48]} 26. Nf5 {[%clk 0:01:37]}  g6 {[%clk 0:00:36]} 27. Nh6+ {[%clk 0:01:23]}  Kg7 {[%clk 0:00:36]} 28. Ng4 {[%clk 0:01:23]}  Bxg4 {[%clk 0:00:36]} 29. Rxg4 {[%clk 0:01:24]}  Rae6 {[%clk 0:00:37]} 30. Qh3 {[%clk 0:01:19]}  Bf8 {[%clk 0:00:19]} 31. Bh6+ {[%clk 0:00:48]}  Kh8 {[%clk 0:00:19]} 32. Bxf8 {[%clk 0:00:47]}  Rxf8 {[%clk 0:00:20]} 33. Rxg6 {[%clk 0:00:46]}  Qxe4 {[%clk 0:00:18]} 34. Rh6 {[%clk 0:00:41]}  Qe3+ {[%clk 0:00:16]} 35. Qxe3 {[%clk 0:00:23]}  Rxe3 {[%clk 0:00:17]} 36. Rd1 {[%clk 0:00:23]}  Rd8 {[%clk 0:00:14]} 37. Rh3 {[%clk 0:00:17]}  Rc3 {[%clk 0:00:11]} 38. Rhd3 {[%clk 0:00:15]}  Kg7 {[%clk 0:00:10]} 39. Kf2 {[%clk 0:00:10]}  Kf7 {[%clk 0:00:10]} 40. Kf3 {[%clk 0:00:10]}  Ke6 {[%clk 0:00:09]} 41. g3 {[%clk 0:00:07]}  f5 {[%clk 0:00:08]} 42. Kf4 {[%clk 0:00:08]}  Rxd3 {[%clk 0:00:08]} 43. Rxd3 {[%clk 0:00:07]}  h6 {[%clk 0:00:08]} 44. h3 {[%clk 0:00:05]}  Kf6 {[%clk 0:00:07]} 45. g4 {[%clk 0:00:05]}  fxg4 {[%clk 0:00:07]} 46. hxg4 {[%clk 0:00:06]}  Kg6 {[%clk 0:00:06]} 47. Ke4 {[%clk 0:00:05]}  Kg5 {[%clk 0:00:06]} 48. Rxd4 {[%clk 0:00:05]}  Rf8 {[%clk 0:00:06]} 49. Kd5 {[%clk 0:00:05]}  Rf3 {[%clk 0:00:06]} 50. c5 {[%clk 0:00:05]}  Rxb3 {[%clk 0:00:06]} 51. c6 {[%clk 0:00:06]}  Rb1 {[%clk 0:00:04]} 52. c7 {[%clk 0:00:05]}  Rc1 {[%clk 0:00:04]} 53. Rc4 {[%clk 0:00:06]}  Rd1+ {[%clk 0:00:03]} 54. Kc6 {[%clk 0:00:06]}  b3 {[%clk 0:00:03]} 55. c8=Q {[%clk 0:00:06]}  b2 {[%clk 0:00:04]} 56. Qf5+ {[%clk 0:00:06]}  Kh4 {[%clk 0:00:04]} 57. g5+ {[%clk 0:00:06]}  Kg3 {[%clk 0:00:04]} 58. Qg4+ {[%clk 0:00:06]}  Kf2 {[%clk 0:00:05]} 59. Qxd1 {[%clk 0:00:06]}  b1=Q {[%clk 0:00:05]} 60. Qxb1 {[%clk 0:00:06]}  hxg5 {[%clk 0:00:06]} 61. Qd3 {[%clk 0:00:05]} 1-0


[Site "https://www.chess.com"]

[Event "Titled Tuesday Blitz November 22 Late 2022"]
[White "Sokolovsky, Yahli"]
[Black "Hardaway, Brewington"]
[WhiteFideId "2820242"]
[BlackFideId "30941849"]
[WhiteElo "2316"]
[BlackElo "2159"]
[Result "1-0"]
[Round "05"]
[TimeControl "180+1"]
[Date "2022.11.23"]
[WhiteClock "0:00:08"]
[BlackClock "0:00:23"]

1. b3 {[%clk 0:03:00]}  Nf6 {[%clk 0:02:59]} 2. Bb2 {[%clk 0:03:00]}  e6 {[%clk 0:02:59]} 3. e3 {[%clk 0:02:59]}  Be7 {[%clk 0:02:59]} 4. Nf3 {[%clk 0:02:57]}  O-O {[%clk 0:03:00]} 5. d4 {[%clk 0:02:58]}  d5 {[%clk 0:03:00]} 6. Bd3 {[%clk 0:02:58]}  c5 {[%clk 0:03:00]} 7. O-O {[%clk 0:02:58]}  Nc6 {[%clk 0:03:01]} 8. Ne5 {[%clk 0:02:54]}  Qb6 {[%clk 0:02:51]} 9. Nxc6 {[%clk 0:02:41]}  Qxc6 {[%clk 0:02:50]} 10. Nd2 {[%clk 0:02:40]}  b5 {[%clk 0:02:44]} 11. dxc5 {[%clk 0:02:20]}  Qxc5 {[%clk 0:02:42]} 12. Nf3 {[%clk 0:02:13]}  Bb7 {[%clk 0:02:33]} 13. Ne5 {[%clk 0:01:58]}  Rfd8 {[%clk 0:02:26]} 14. Qf3 {[%clk 0:01:56]}  Qc7 {[%clk 0:02:11]} 15. Qh3 {[%clk 0:01:44]}  Ne4 {[%clk 0:02:01]} 16. f3 {[%clk 0:01:36]}  Ng5 {[%clk 0:01:56]} 17. Qg4 {[%clk 0:01:20]}  Bf6 {[%clk 0:01:47]} 18. Bd4 {[%clk 0:00:40]}  h6 {[%clk 0:01:35]} 19. f4 {[%clk 0:00:28]}  Ne4 {[%clk 0:01:33]} 20. Rf3 {[%clk 0:00:29]}  b4 {[%clk 0:01:23]} 21. Rh3 {[%clk 0:00:28]}  Kf8 {[%clk 0:01:23]} 22. Rf1 {[%clk 0:00:25]}  Nd2 {[%clk 0:01:19]} 23. Rf2 {[%clk 0:00:22]}  Ne4 {[%clk 0:01:19]} 24. Rf1 {[%clk 0:00:23]}  Nd6 {[%clk 0:01:15]} 25. f5 {[%clk 0:00:15]}  exf5 {[%clk 0:01:14]} 26. Bxf5 {[%clk 0:00:16]}  Nxf5 {[%clk 0:01:14]} 27. Qxf5 {[%clk 0:00:16]}  Bc8 {[%clk 0:01:13]} 28. Qh7 {[%clk 0:00:10]}  Bxh3 {[%clk 0:01:14]} 29. Ng6+ {[%clk 0:00:03]}  Ke8 {[%clk 0:00:45]} 30. Bxf6 {[%clk 0:00:03]}  gxf6 {[%clk 0:00:43]} 31. gxh3 {[%clk 0:00:01]}  fxg6 {[%clk 0:00:42]} 32. Qxc7 {[%clk 0:00:01]}  Rac8 {[%clk 0:00:36]} 33. Qg7 {[%clk 0:00:02]}  Rd7 {[%clk 0:00:30]} 34. Qg8+ {[%clk 0:00:02]}  Ke7 {[%clk 0:00:30]} 35. Qxc8 {[%clk 0:00:03]}  f5 {[%clk 0:00:28]} 36. Qc5+ {[%clk 0:00:04]}  Ke6 {[%clk 0:00:28]} 37. Qd4 {[%clk 0:00:05]}  Rc7 {[%clk 0:00:28]} 38. Qxb4 {[%clk 0:00:05]}  Rxc2 {[%clk 0:00:29]} 39. Rf2 {[%clk 0:00:05]}  Rc1+ {[%clk 0:00:29]} 40. Kg2 {[%clk 0:00:06]}  Rc6 {[%clk 0:00:29]} 41. Rd2 {[%clk 0:00:06]}  Rb6 {[%clk 0:00:26]} 42. Qd4 {[%clk 0:00:07]}  Rd6 {[%clk 0:00:24]} 43. Qg7 {[%clk 0:00:07]}  g5 {[%clk 0:00:23]} 44. Qxh6+ {[%clk 0:00:08]} 1-0


[Site "https://www.chess.com"]

[Event "Titled Tuesday Blitz November 22 Late 2022"]
[White "Stanisz, Patryk"]
[Black "Storey, Charles H"]
[WhiteFideId "1123106"]
[BlackFideId "406686"]
[WhiteElo "2069"]
[BlackElo "2252"]
[Result "0-1"]
[Round "05"]
[TimeControl "180+1"]
[Date "2022.11.23"]
[WhiteClock "0:00:04"]
[BlackClock "0:00:37"]

1. d4 {[%clk 0:03:00]}  g6 {[%clk 0:02:59]} 2. c4 {[%clk 0:03:00]}  Bg7 {[%clk 0:02:59]} 3. Nc3 {[%clk 0:03:00]}  c5 {[%clk 0:02:58]} 4. Nf3 {[%clk 0:02:59]}  cxd4 {[%clk 0:02:58]} 5. Nxd4 {[%clk 0:03:00]}  Nc6 {[%clk 0:02:58]} 6. e3 {[%clk 0:02:57]}  Nh6 {[%clk 0:02:58]} 7. Be2 {[%clk 0:02:57]}  d6 {[%clk 0:02:58]} 8. O-O {[%clk 0:02:57]}  O-O {[%clk 0:02:58]} 9. Bf3 {[%clk 0:02:56]}  Bd7 {[%clk 0:02:57]} 10. Rb1 {[%clk 0:02:54]}  Nf5 {[%clk 0:02:54]} 11. Nde2 {[%clk 0:02:09]}  Nh4 {[%clk 0:02:48]} 12. Bxc6 {[%clk 0:02:03]}  Bxc6 {[%clk 0:02:47]} 13. f3 {[%clk 0:02:03]}  Nf5 {[%clk 0:02:28]} 14. e4 {[%clk 0:02:02]}  Qb6+ {[%clk 0:02:25]} 15. Rf2 {[%clk 0:01:28]}  Nd4 {[%clk 0:02:16]} 16. Kf1 {[%clk 0:01:25]}  Nxe2 {[%clk 0:02:15]} 17. Nxe2 {[%clk 0:01:17]}  Qa6 {[%clk 0:02:12]} 18. Qb3 {[%clk 0:00:45]}  Ba4 {[%clk 0:02:08]} 19. Qa3 {[%clk 0:00:40]}  Bc2 {[%clk 0:02:08]} 20. Qxa6 {[%clk 0:00:40]}  bxa6 {[%clk 0:02:09]} 21. Ra1 {[%clk 0:00:41]}  Bd3 {[%clk 0:02:08]} 22. Ke1 {[%clk 0:00:36]}  Bxc4 {[%clk 0:02:08]} 23. Nc3 {[%clk 0:00:32]}  Rab8 {[%clk 0:01:57]} 24. Be3 {[%clk 0:00:23]}  Rxb2 {[%clk 0:01:54]} 25. Rxb2 {[%clk 0:00:22]}  Bxc3+ {[%clk 0:01:55]} 26. Rd2 {[%clk 0:00:18]}  Bxa1 {[%clk 0:01:54]} 27. Kf2 {[%clk 0:00:18]}  Rb8 {[%clk 0:01:45]} 28. Rc2 {[%clk 0:00:17]}  Rb2 {[%clk 0:01:43]} 29. Rxb2 {[%clk 0:00:17]}  Bxb2 {[%clk 0:01:44]} 30. Bxa7 {[%clk 0:00:17]}  Bxa2 {[%clk 0:01:44]} 31. Ke3 {[%clk 0:00:18]}  Bc4 {[%clk 0:01:40]} 32. Kd2 {[%clk 0:00:18]}  Be5 {[%clk 0:01:36]} 33. g3 {[%clk 0:00:17]}  g5 {[%clk 0:01:34]} 34. Be3 {[%clk 0:00:16]}  h6 {[%clk 0:01:29]} 35. f4 {[%clk 0:00:16]}  Bf6 {[%clk 0:01:26]} 36. Bb6 {[%clk 0:00:16]}  e5 {[%clk 0:01:22]} 37. f5 {[%clk 0:00:12]}  g4 {[%clk 0:01:19]} 38. Bc7 {[%clk 0:00:04]}  d5 {[%clk 0:01:10]} 39. exd5 {[%clk 0:00:02]}  Bxd5 {[%clk 0:01:10]} 40. Ba5 {[%clk 0:00:02]}  Be4 {[%clk 0:01:04]} 41. Ke3 {[%clk 0:00:03]}  Bxf5 {[%clk 0:01:04]} 42. Kf2 {[%clk 0:00:02]}  h5 {[%clk 0:00:55]} 43. Ke3 {[%clk 0:00:02]}  Bg5+ {[%clk 0:00:52]} 44. Kf2 {[%clk 0:00:03]}  Be6 {[%clk 0:00:52]} 45. Kg2 {[%clk 0:00:02]}  f5 {[%clk 0:00:52]} 46. h4 {[%clk 0:00:02]}  Be3 {[%clk 0:00:47]} 47. Bc7 {[%clk 0:00:01]}  f4 {[%clk 0:00:43]} 48. gxf4 {[%clk 0:00:01]}  exf4 {[%clk 0:00:43]} 49. Kf1 {[%clk 0:00:02]}  f3 {[%clk 0:00:43]} 50. Ke1 {[%clk 0:00:02]}  Bb3 {[%clk 0:00:41]} 51. Kf1 {[%clk 0:00:02]}  Bc4+ {[%clk 0:00:39]} 52. Ke1 {[%clk 0:00:03]}  f2+ {[%clk 0:00:39]} 53. Kd1 {[%clk 0:00:03]}  f1=Q+ {[%clk 0:00:39]} 54. Kc2 {[%clk 0:00:04]}  Qd3+ {[%clk 0:00:39]} 55. Kb2 {[%clk 0:00:03]}  Qb3+ {[%clk 0:00:39]} 56. Ka1 {[%clk 0:00:04]}  Bd4# {[%clk 0:00:37]} 0-1


[Site "https://www.chess.com"]

[Event "Titled Tuesday Blitz November 22 Late 2022"]
[White "Suarez Uriel, Adrian"]
[Black "Principe, Gerson"]
[WhiteFideId "22230874"]
[BlackFideId "3804550"]
[WhiteElo "2331"]
[BlackElo "2280"]
[Result "0-1"]
[Round "05"]
[TimeControl "180+1"]
[Date "2022.11.23"]
[WhiteClock "0:00:17"]
[BlackClock "0:00:10"]

1. d4 {[%clk 0:03:00]}  Nf6 {[%clk 0:02:58]} 2. c4 {[%clk 0:03:00]}  e6 {[%clk 0:02:58]} 3. Nf3 {[%clk 0:02:59]}  b6 {[%clk 0:02:58]} 4. g3 {[%clk 0:02:57]}  Bb7 {[%clk 0:02:52]} 5. Bg2 {[%clk 0:02:56]}  Be7 {[%clk 0:02:53]} 6. O-O {[%clk 0:02:55]}  O-O {[%clk 0:02:54]} 7. b3 {[%clk 0:02:55]}  a5 {[%clk 0:02:52]} 8. Nc3 {[%clk 0:02:52]}  Ne4 {[%clk 0:02:52]} 9. Bb2 {[%clk 0:02:50]}  f5 {[%clk 0:02:49]} 10. Qc2 {[%clk 0:02:46]}  Nxc3 {[%clk 0:02:42]} 11. Bxc3 {[%clk 0:02:46]}  Be4 {[%clk 0:02:42]} 12. Qb2 {[%clk 0:02:46]}  d6 {[%clk 0:02:42]} 13. Rad1 {[%clk 0:02:46]}  Nd7 {[%clk 0:02:42]} 14. Ne1 {[%clk 0:02:41]}  Bxg2 {[%clk 0:02:38]} 15. Nxg2 {[%clk 0:02:42]}  Bf6 {[%clk 0:02:35]} 16. Rfe1 {[%clk 0:02:38]}  e5 {[%clk 0:02:32]} 17. dxe5 {[%clk 0:02:37]}  Bxe5 {[%clk 0:02:32]} 18. e4 {[%clk 0:02:34]}  fxe4 {[%clk 0:02:24]} 19. Rxe4 {[%clk 0:02:33]}  Qf6 {[%clk 0:02:21]} 20. Bxe5 {[%clk 0:02:30]}  Nxe5 {[%clk 0:02:20]} 21. Qe2 {[%clk 0:02:17]}  Nf3+ {[%clk 0:01:37]} 22. Kh1 {[%clk 0:02:16]}  g5 {[%clk 0:01:30]} 23. Ne3 {[%clk 0:02:12]}  Ne5 {[%clk 0:01:22]} 24. Nd5 {[%clk 0:02:06]}  Qg7 {[%clk 0:00:46]} 25. f4 {[%clk 0:02:03]}  Nc6 {[%clk 0:00:31]} 26. Ne7+ {[%clk 0:01:59]}  Nxe7 {[%clk 0:00:25]} 27. Rxe7 {[%clk 0:02:00]}  Qf6 {[%clk 0:00:26]} 28. Re1 {[%clk 0:00:29]}  gxf4 {[%clk 0:00:23]} 29. Qg4+ {[%clk 0:00:29]}  Kh8 {[%clk 0:00:18]} 30. Qh3 {[%clk 0:00:24]}  Rf7 {[%clk 0:00:12]} 31. Re8+ {[%clk 0:00:20]}  Rxe8 {[%clk 0:00:11]} 32. Rxe8+ {[%clk 0:00:21]}  Kg7 {[%clk 0:00:12]} 33. Qg4+ {[%clk 0:00:21]}  Qg6 {[%clk 0:00:12]} 34. Qxg6+ {[%clk 0:00:19]}  Kxg6 {[%clk 0:00:10]} 35. g4 {[%clk 0:00:19]}  Kg5 {[%clk 0:00:08]} 36. h3 {[%clk 0:00:19]}  Kh4 {[%clk 0:00:09]} 37. Kg2 {[%clk 0:00:18]}  f3+ {[%clk 0:00:09]} 38. Kf2 {[%clk 0:00:18]}  Kxh3 {[%clk 0:00:10]} 39. Rg8 {[%clk 0:00:18]}  Kh4 {[%clk 0:00:09]} 40. g5 {[%clk 0:00:18]}  Kh5 {[%clk 0:00:09]} 41. g6 {[%clk 0:00:19]}  hxg6 {[%clk 0:00:09]} 42. Rh8+ {[%clk 0:00:19]}  Kg4 {[%clk 0:00:09]} 43. Rg8 {[%clk 0:00:19]}  g5 {[%clk 0:00:09]} 44. Re8 {[%clk 0:00:19]}  Kf4 {[%clk 0:00:09]} 45. Rg8 {[%clk 0:00:19]}  g4 {[%clk 0:00:09]} 46. Rg6 {[%clk 0:00:19]}  Rf5 {[%clk 0:00:09]} 47. Rg8 {[%clk 0:00:19]}  Rg5 {[%clk 0:00:09]} 48. Rf8+ {[%clk 0:00:18]}  Ke4 {[%clk 0:00:09]} 49. Re8+ {[%clk 0:00:19]}  Kd4 {[%clk 0:00:10]} 50. Kg3 {[%clk 0:00:18]}  Rf5 {[%clk 0:00:09]} 51. Kf2 {[%clk 0:00:17]}  g3+ {[%clk 0:00:10]} 52. Kxg3 {[%clk 0:00:17]}  f2 {[%clk 0:00:10]} 0-1


[Site "https://www.chess.com"]

[Event "Titled Tuesday Blitz November 22 Late 2022"]
[White "Tang, Andrew"]
[Black "Caruana, Fabiano"]
[WhiteFideId "2059630"]
[BlackFideId "2020009"]
[WhiteElo "2581"]
[BlackElo "2847"]
[Result "0-1"]
[Round "05"]
[TimeControl "180+1"]
[Date "2022.11.22"]
[WhiteClock "0:00:02"]
[BlackClock "0:00:04"]

1. d4 {[%clk 0:02:53]}  Nf6 {[%clk 0:02:59]} 2. c4 {[%clk 0:02:50]}  e6 {[%clk 0:03:00]} 3. Nc3 {[%clk 0:02:50]}  Bb4 {[%clk 0:02:59]} 4. Qc2 {[%clk 0:02:51]}  O-O {[%clk 0:02:58]} 5. Nf3 {[%clk 0:02:51]}  d6 {[%clk 0:02:57]} 6. g3 {[%clk 0:02:51]}  Nc6 {[%clk 0:02:56]} 7. Bg2 {[%clk 0:02:52]}  e5 {[%clk 0:02:57]} 8. d5 {[%clk 0:02:52]}  Nb8 {[%clk 0:02:56]} 9. O-O {[%clk 0:02:52]}  a5 {[%clk 0:02:53]} 10. Na4 {[%clk 0:02:46]}  Nbd7 {[%clk 0:01:56]} 11. Be3 {[%clk 0:02:38]}  Re8 {[%clk 0:01:47]} 12. a3 {[%clk 0:02:35]}  Bc5 {[%clk 0:01:47]} 13. Nxc5 {[%clk 0:02:36]}  Nxc5 {[%clk 0:01:47]} 14. b4 {[%clk 0:02:36]}  Na6 {[%clk 0:01:45]} 15. Qb2 {[%clk 0:02:21]}  Bf5 {[%clk 0:01:41]} 16. Rfd1 {[%clk 0:02:10]}  Qd7 {[%clk 0:01:35]} 17. b5 {[%clk 0:01:12]}  Nc5 {[%clk 0:01:33]} 18. Bxc5 {[%clk 0:01:01]}  dxc5 {[%clk 0:01:32]} 19. Nxe5 {[%clk 0:01:02]}  Qe7 {[%clk 0:01:26]} 20. Nd3 {[%clk 0:01:00]}  Qd6 {[%clk 0:01:08]} 21. e3 {[%clk 0:00:54]}  b6 {[%clk 0:01:05]} 22. Rac1 {[%clk 0:00:50]}  h5 {[%clk 0:01:04]} 23. Qd2 {[%clk 0:00:46]}  h4 {[%clk 0:01:03]} 24. Nf4 {[%clk 0:00:39]}  g5 {[%clk 0:00:55]} 25. Ne2 {[%clk 0:00:38]}  Bg6 {[%clk 0:00:46]} 26. f3 {[%clk 0:00:35]}  Nd7 {[%clk 0:00:38]} 27. e4 {[%clk 0:00:34]}  Qf6 {[%clk 0:00:27]} 28. Qc3 {[%clk 0:00:24]}  Qxc3 {[%clk 0:00:20]} 29. Rxc3 {[%clk 0:00:15]}  Rad8 {[%clk 0:00:20]} 30. Kf2 {[%clk 0:00:13]}  hxg3+ {[%clk 0:00:19]} 31. hxg3 {[%clk 0:00:11]}  Kg7 {[%clk 0:00:19]} 32. Re1 {[%clk 0:00:11]}  Nf6 {[%clk 0:00:17]} 33. Re3 {[%clk 0:00:09]}  Nd7 {[%clk 0:00:16]} 34. f4 {[%clk 0:00:09]}  Nf6 {[%clk 0:00:13]} 35. Nc3 {[%clk 0:00:03]}  Ng4+ {[%clk 0:00:13]} 36. Kf3 {[%clk 0:00:03]}  Bh5 {[%clk 0:00:11]} 37. Bh3 {[%clk 0:00:02]}  Nxe3+ {[%clk 0:00:10]} 38. Kxe3 {[%clk 0:00:03]}  Rh8 {[%clk 0:00:08]} 39. Bg2 {[%clk 0:00:02]}  Bg4 {[%clk 0:00:08]} 40. Kf2 {[%clk 0:00:03]}  Rh2 {[%clk 0:00:07]} 41. Kg1 {[%clk 0:00:03]}  Rh6 {[%clk 0:00:06]} 42. e5 {[%clk 0:00:03]}  gxf4 {[%clk 0:00:06]} 43. gxf4 {[%clk 0:00:04]}  Rg6 {[%clk 0:00:06]} 44. Kf2 {[%clk 0:00:04]}  Rh8 {[%clk 0:00:06]} 45. Rh1 {[%clk 0:00:03]}  Rxh1 {[%clk 0:00:06]} 46. Bxh1 {[%clk 0:00:04]}  Bf5 {[%clk 0:00:06]} 47. Be4 {[%clk 0:00:05]}  Bxe4 {[%clk 0:00:04]} 48. Nxe4 {[%clk 0:00:05]}  Kf8 {[%clk 0:00:04]} 49. Ng3 {[%clk 0:00:04]}  Rh6 {[%clk 0:00:04]} 50. Kg2 {[%clk 0:00:02]}  Rh4 {[%clk 0:00:04]} 51. Kf3 {[%clk 0:00:03]}  Rh2 {[%clk 0:00:04]} 52. Nf5 {[%clk 0:00:02]}  Ra2 {[%clk 0:00:04]} 53. d6 {[%clk 0:00:02]}  cxd6 {[%clk 0:00:05]} 54. Nxd6 {[%clk 0:00:03]}  Rxa3+ {[%clk 0:00:06]} 55. Ke4 {[%clk 0:00:04]}  Rc3 {[%clk 0:00:05]} 56. Nc8 {[%clk 0:00:04]}  Rxc4+ {[%clk 0:00:05]} 57. Kd5 {[%clk 0:00:04]}  Rd4+ {[%clk 0:00:05]} 58. Kc6 {[%clk 0:00:03]}  c4 {[%clk 0:00:06]} 59. Nxb6 {[%clk 0:00:02]}  c3 {[%clk 0:00:06]} 60. Kc5 {[%clk 0:00:02]}  Rd1 {[%clk 0:00:04]} 0-1


[Site "https://www.chess.com"]